fUSD/lending_fUSD_20260408
["ID","MTS","AMOUNT","RATE_DAILY","PERIOD"]
[420036741,1775627450341,-2534.6,0.00015068,2]
[420036742,1775627450350,-11199.96690183,0.0001514,2]
[420036743,1775627450360,-156.22357128,0.00015164,2]
[420036744,1775627450370,-29562.81978733,0.0001519,2]
[420036745,1775627450381,-501.53334874,0.0001524,2]
[420036746,1775627450690,-500.0,0.0001524,2]
[420036747,1775627450702,-2000.0,0.00015281,2]
[420036748,1775627450713,-2002.28581045,0.00015342,2]
[420036749,1775627450723,-2000.0,0.00015342,2]
[420036750,1775627450733,-451.88193642,0.00015342,2]
[420036751,1775627450743,-2000.0,0.00015342,2]
[420036752,1775627450753,-2000.0,0.00015342,2]
[420036753,1775627450763,-503.63625007,0.00015342,2]
[420036754,1775627450773,-1252.0,0.00015364,2]
[420036755,1775627450783,-171.98,0.00015365,2]
[420036756,1775627450793,-5361.57423727,0.00015408,2]
[420036757,1775627450803,-900.0,0.00015453,2]
[420036758,1775627450814,-900.0,0.00015453,2]
[420036759,1775627450823,-900.0,0.00015453,2]
[420036760,1775627450834,-900.0,0.00015453,2]
[420036761,1775627450843,-900.0,0.00015453,2]
[420036762,1775627450853,-900.0,0.00015453,2]
[420036763,1775627450863,-900.0,0.00015453,2]
[420036764,1775627450872,-900.0,0.00015453,2]
[420036765,1775627450883,-900.0,0.00015453,2]
[420036766,1775627450893,-895.0,0.00015453,2]
[420036767,1775627450903,-2254.94,0.00015471,2]
[420036768,1775627450913,-5024.31,0.00015471,2]
[420036769,1775627450922,-357.0,0.00015497,2]
[420036770,1775627450932,-1152.0,0.00015497,2]
[420036771,1775627450943,-4609.0,0.00015535,2]
[420036772,1775627450954,-2415.40296275,0.0001557,2]
[420036773,1775627450965,-214.4853,0.000156,2]
[420036774,1775627450975,-79364.77,0.000156,2]
[420036775,1775627450985,-150.0,0.00015629,2]
[420036776,1775627450995,-150.0,0.00015629,2]
[420036777,1775627451004,-150.0,0.00015629,2]
[420036778,1775627451014,-150.0,0.00015629,2]
[420036779,1775627451025,-171.0,0.00015629,2]
[420036780,1775627451034,-402.56716046,0.0001571,2]
[420036781,1775627451044,-2534.6,0.00015753,2]
[420036782,1775627451054,-29562.81978733,0.00015762,2]
[420036783,1775627451064,-150.0,0.00015808,2]
[420036784,1775627451073,-150.0,0.00015808,2]
[420036785,1775627451085,-150.0,0.00015808,2]
[420036786,1775627451096,-150.0,0.00015808,2]
[420036787,1775627451107,-243.0,0.00015808,2]
[420036788,1775627451117,-500.0,0.00015808,2]
[420036789,1775627451127,-500.0,0.00015808,2]
[420036790,1775627451137,-396.4808442,0.00015808,2]
[420036791,1775627451146,-113846.4586908,0.0001584,2]
[420036792,1775627451156,-2132.78,0.00015862,2]
[420036793,1775627451166,-402.56716046,0.00015866,2]
[420036794,1775627451176,-500.0,0.0001589,2]
[420036795,1775627451186,-500.0,0.0001589,2]
[420036796,1775627451198,-177.05503597,0.0001589,2]
[420036797,1775627451211,-2500.0,0.0001589,2]
[420036798,1775627451223,-1346.46562521,0.0001589,2]
[420036799,1775627451235,-2500.0,0.0001589,2]
[420036800,1775627451246,-184.01842302,0.000159,2]
[420036801,1775627451260,-303.7,0.00015926,2]
[420036802,1775627451270,-500.0,0.00015973,2]
[420036803,1775627451281,-371.0,0.00016021,2]
[420036804,1775627451292,-402.56716046,0.00016022,2]
[420036805,1775627451303,-512.37,0.00016116,2]
[420036806,1775627451313,-1050.6,0.00016116,2]
[420036807,1775627451323,-9999.99,0.00016116,2]
[420036808,1775627451333,-303.7,0.00016223,2]
[420036809,1775627451343,-582.77730435,0.00016233,2]
[420036810,1775627451353,-155.49037491,0.00016318,2]
[420036811,1775627451363,-2534.6,0.00016438,2]
[420036812,1775627451372,-3000.0,0.00016438,2]
[420036813,1775627451382,-3000.0,0.00016438,2]
[420036814,1775627451392,-303.7,0.00016521,2]
[420036815,1775627451402,-277.52815515,0.00016574,2]
[420036816,1775627451412,-990.62674096,0.00016574,2]
[420036817,1775627451423,-2000.0,0.0001667,2]
[420036818,1775627451433,-234.01,0.00016712,2]
[420036819,1775627451443,-500.0,0.00016722,2]
[420036820,1775627451453,-500.0,0.00016722,2]
[420036821,1775627451467,-985.91,0.00016818,2]
[420036822,1775627451478,-786.02,0.00016834,2]
[420036823,1775627451489,-2129.0,0.00016861,2]
[420036824,1775627451498,-241.6386,0.000169,2]
[420036825,1775627451508,-505.70956127,0.00016986,2]
[420036826,1775627451519,-1111.00026293,0.00016986,2]
[420036827,1775627451528,-350.0,0.00017,2]
[420036828,1775627451538,-160.0,0.00017,7]
[420036829,1775627451548,-1613.0,0.00017036,2]
[420036830,1775627451558,-6703.71173397,0.00017081,2]
[420036831,1775627451567,-6453.0,0.00017089,2]
[420036832,1775627451577,-987.75,0.00017092,2]
[420036833,1775627451587,-766.01,0.00017108,2]
[420036834,1775627451597,-160.0,0.00017126,2]
[420036835,1775627451607,-1000.0,0.0001727,2]
[420036836,1775627451617,-79364.77,0.000174,2]
[420036837,1775627451627,-2000.0,0.00017402,2]
[420036838,1775627451636,-516.67152996,0.000176,2]
[420036839,1775627451646,-171.98,0.00017683,2]
[420036840,1775627451656,-1503.29,0.00017728,2]
[420036841,1775627451666,-3349.54,0.00017728,2]
[420036842,1775627451676,-412.44,0.00017728,2]
[420036843,1775627451687,-720.37,0.00017728,2]
[420036844,1775627451697,-627.065,0.00017749,2]
[420036845,1775627451707,-1053.585,0.00017749,2]
[420036846,1775627451717,-1347.0,0.00017749,2]
[420036847,1775627451728,-3542.414,0.00017749,2]
[420036848,1775627451738,-277.201,0.00017749,2]
[420036849,1775627451747,-415.0,0.00017749,2]
[420036850,1775627451757,-3772.0,0.00017749,2]
[420036851,1775627451768,-5361.57423727,0.00017806,2]
[420036852,1775627451777,-1500.0,0.00017818,2]
[420036853,1775627451788,-160.0,0.000179,7]
[420036854,1775627451799,-2132.78,0.00018024,2]
[420036855,1775627451809,-272.2295,0.000182,2]
[420036856,1775627451819,-501.38361513,0.00018366,2]
[420036857,1775627451829,-3367.0,0.00018495,2]
[420036858,1775627451840,-500.0,0.00018556,2]
[420036859,1775627451850,-500.0,0.00018556,2]
[420036860,1775627451860,-500.0,0.00018556,2]
[420036861,1775627451871,-2258.0,0.00018728,2]
[420036862,1775627451880,-15652.05,0.00018746,2]
[420036863,1775627451891,-9035.0,0.00018798,2]
[420036864,1775627451901,-400.0,0.00019,2]
[420036865,1775627451911,-8350.49652639,0.00019007,2]
[420036866,1775627451921,-222.98583208,0.00019007,2]
[420036867,1775627451932,-212.78988451,0.00019007,2]
[420036868,1775627451942,-882.1111067,0.00019104,2]
[420036869,1775627451952,-172.70630045,0.00019104,2]
[420036870,1775627451966,-177.67,0.00019178,2]
[420036871,1775627451976,-79364.77,0.000192,2]
[420036872,1775627451986,-500.0,0.00019288,2]
[420036873,1775627451996,-2812.0,0.00019289,2]
[420036874,1775627452006,-156.22357128,0.00019409,2]
[420036875,1775627452016,-306.6931,0.000195,2]
[420036876,1775627452026,-50937.0,0.000195,2]
[420036877,1775627452036,-2812.0,0.00019609,2]
[420036878,1775627452046,-2000.0,0.000197,2]
[420036879,1775627452056,-1235.18214925,0.0001973,2]
[420036880,1775627452065,-623.58710448,0.0001973,2]
[420036881,1775627452075,-181.08010149,0.0001973,2]
[420036882,1775627452086,-200.0,0.0001973,2]
[420036883,1775627452095,-174.61919141,0.0001973,2]
[420036884,1775627452104,-578.20924308,0.0001973,2]
[420036885,1775627452114,-1000.0,0.0001973,2]
[420036886,1775627452124,-1000.0,0.0001973,2]
[420036887,1775627452134,-292.18486671,0.0001973,2]
[420036888,1775627452145,-170.0,0.0001973,2]
[420036889,1775627452155,-170.0,0.0001973,2]
[420036890,1775627452166,-151.0,0.0001973,2]
[420036891,1775627452176,-170.0,0.0001973,2]
[420036892,1775627452188,-170.0,0.0001973,2]
[420036893,1775627452199,-170.0,0.0001973,2]
[420036894,1775627452211,-743.50770149,0.0001973,2]
[420036895,1775627452222,-170.0,0.0001973,2]
[420036896,1775627452232,-170.0,0.0001973,2]
[420036897,1775627452241,-170.0,0.0001973,2]
[420036898,1775627452251,-170.0,0.0001973,2]
[420036899,1775627452261,-170.0,0.0001973,2]
[420036900,1775627452273,-170.0,0.0001973,2]
[420036901,1775627452283,-170.0,0.0001973,2]
[420036902,1775627452292,-170.0,0.0001973,2]
[420036903,1775627452302,-170.0,0.0001973,2]
[420036904,1775627452311,-170.0,0.0001973,2]
[420036905,1775627452321,-505.73279232,0.0001973,2]
[420036906,1775627452331,-591.41950389,0.0001973,2]
[420036907,1775627452340,-151.0,0.00019785,2]
[420036908,1775627452350,-1542.0,0.00019839,2]
[420036909,1775627452359,-151.0,0.0001984,2]
[420036910,1775627452369,-151.0,0.00019895,2]
[420036911,1775627452379,-5533.0,0.000199,3]
[420036912,1775627452389,-1773.0,0.00019935,2]
[420036913,1775627452398,-1773.0,0.00019944,2]
[420036914,1775627452408,-151.0,0.0001995,2]
[420036915,1775627452417,-5800.0,0.00019992,2]
[420036916,1775627452427,-5800.0,0.0002,2]
[420036917,1775627452437,-200.0,0.0002,10]
[420036918,1775627452447,-825.0,0.0002,30]
[420036919,1775627452458,-1000.0,0.0002,7]
[420036920,1775627452468,-151.0,0.00020005,2]
[420036921,1775627452478,-1773.0,0.00020042,2]
[420036922,1775627452488,-151.0,0.0002006,2]
[420036923,1775627452497,-1773.0,0.00020069,2]
[420036924,1775627452508,-300.0,0.000201,10]
[420036925,1775627452517,-1773.0,0.00020114,2]
[420036926,1775627452526,-151.0,0.00020115,2]
[420036927,1775627452536,-151.0,0.0002017,2]
[420036928,1775627452546,-2132.78,0.00020187,2]
[420036929,1775627452555,-2000.0,0.00020205,2]
[420036930,1775627452565,-5361.57423727,0.00020205,2]
[420036931,1775627452574,-151.0,0.00020225,2]
[420036932,1775627452585,-1280.88388878,0.00020278,2]
[420036933,1775627452595,-187.78006525,0.00020278,2]
[420036934,1775627452605,-200.0,0.00020278,2]
[420036935,1775627452616,-181.08010149,0.00020278,2]
[420036936,1775627452626,-771.01748645,0.00020278,2]
[420036937,1775627452636,-151.0,0.0002028,2]
[420036938,1775627452646,-1773.0,0.0002029,2]
[420036939,1775627452656,-5533.0,0.000203,5]
[420036940,1775627452666,-171.98,0.00020325,2]
[420036941,1775627452675,-152.0,0.0002033,3]
[420036942,1775627452686,-1773.0,0.00020332,2]
[420036943,1775627452696,-151.0,0.00020335,2]
[420036944,1775627452707,-481.98,0.00020379,2]
[420036945,1775627452717,-151.0,0.0002039,2]
[420036946,1775627452727,-1773.0,0.00020417,2]
[420036947,1775627452737,-151.0,0.00020445,2]
[420036948,1775627452747,-151.0,0.000205,2]
[420036949,1775627452757,-1078.0,0.00020588,2]
[420036950,1775627452767,-1773.0,0.00020635,2]
[420036951,1775627452777,-171.98,0.0002065,2]
[420036952,1775627452787,-1773.0,0.00020665,2]
[420036953,1775627452797,-12649.0,0.00020677,2]
[420036954,1775627452807,-345.5197,0.000207,2]
[420036955,1775627452817,-5000.0,0.000207,30]
[420036956,1775627452826,-5000.0,0.000207,30]
[420036957,1775627452836,-5000.0,0.000207,30]
[420036958,1775627452846,-2350.0,0.000207,30]
[420036959,1775627452856,-2350.0,0.000207,30]
[420036960,1775627452865,-2232.0,0.000207,30]
[420036961,1775627452875,-481.98,0.00020719,2]
[420036962,1775627452885,-622.0,0.00020749,2]
[420036963,1775627452895,-1046.0,0.00020749,2]
[420036964,1775627452904,-1347.0,0.00020749,2]
[420036965,1775627452914,-3524.0,0.00020749,2]
[420036966,1775627452923,-150.0,0.00020749,2]
[420036967,1775627452933,-415.0,0.00020749,2]
[420036968,1775627452942,-3772.0,0.00020749,2]
[420036969,1775627452952,-79364.77,0.000208,2]
[420036970,1775627452963,-194.72792766,0.00020826,2]
[420036971,1775627452973,-200.0,0.00020826,2]
[420036972,1775627452983,-1328.27659266,0.00020826,2]
[420036973,1775627452993,-187.78006525,0.00020826,2]
[420036974,1775627453003,-799.54513345,0.00020826,2]
[420036975,1775627453013,-490.0,0.00020975,7]
[420036976,1775627453023,-415.0,0.00020975,7]
[420036977,1775627453033,-450.0,0.00021,2]
[420036978,1775627453042,-481.98,0.00021059,2]
[420036979,1775627453052,-1773.0,0.0002111,2]
[420036980,1775627453062,-1773.0,0.00021146,2]
[420036981,1775627453072,-1773.0,0.00021164,2]
[420036982,1775627453082,-1773.0,0.000212,2]
[420036983,1775627453092,-1773.0,0.00021229,2]
[420036984,1775627453102,-1773.0,0.00021293,2]
[420036985,1775627453224,-1773.0,0.00021304,2]
[420036986,1775627453234,-1773.0,0.00021318,2]
[420036987,1775627453244,-1773.0,0.00021344,2]
[420036988,1775627453254,-1773.0,0.0002136,2]
[420036989,1775627453263,-1773.0,0.00021361,2]
[420036990,1775627453273,-319.09041194,0.00021374,2]
[420036991,1775627453283,-200.0,0.00021374,2]
[420036992,1775627453291,-1377.42282659,0.00021374,2]
[420036993,1775627453301,-194.72792766,0.00021374,2]
[420036994,1775627453311,-693.14665977,0.00021374,2]
[420036995,1775627453320,-481.9865117,0.00021398,2]
[420036996,1775627453330,-1773.0,0.00021428,2]
[420036997,1775627453340,-152.0,0.00021517,4]
[420036998,1775627453349,-1773.0,0.00021548,2]
[420036999,1775627453359,-1773.0,0.00021668,2]
[420037000,1775627453368,-1773.0,0.00021715,2]
[420037001,1775627453378,-500.0,0.00021918,2]
[420037002,1775627453387,-500.0,0.00021918,2]
[420037003,1775627453397,-500.0,0.00021918,2]
[420037004,1775627453407,-220.54357103,0.00021918,2]
[420037005,1775627453417,-150.0,0.00021918,2]
[420037006,1775627453428,-200.0,0.00021922,2]
[420037007,1775627453438,-1461.6329815,0.00021922,2]
[420037008,1775627453448,-201.93286099,0.00021922,2]
[420037009,1775627453458,-389.2617,0.00022,2]
[420037010,1775627453468,-701.0,0.00022,2]
[420037011,1775627453478,-162.0,0.00022,2]
[420037012,1775627453488,-1220.0,0.00022,2]
[420037013,1775627453498,-5456.0,0.00022,2]
[420037014,1775627453508,-3464.0,0.00022,2]
[420037015,1775627453518,-1355.0,0.00022,2]
[420037016,1775627453528,-977.0,0.00022,2]
[420037017,1775627453538,-1364.0,0.00022,2]
[420037018,1775627453548,-634.1,0.00022,30]
[420037019,1775627453558,-151.0,0.00022297,2]
[420037020,1775627453568,-2132.78,0.0002235,2]
[420037021,1775627453579,-2833.97,0.00022354,7]
[420037022,1775627453589,-912.11,0.00022354,7]
[420037023,1775627453599,-208.85233043,0.00022383,9]
[420037024,1775627453609,-177.0455462,0.0002239,2]
[420037025,1775627453619,-79364.77,0.000224,7]
[420037026,1775627453629,-825.0,0.00022411,30]
[420037027,1775627453640,-646.65982734,0.00022469,2]
[420037028,1775627453650,-599.60298507,0.00022469,2]
[420037029,1775627453659,-200.0,0.0002247,2]
[420037030,1775627453669,-209.40437684,0.0002247,2]
[420037031,1775627453679,-1000.0,0.000225,7]
[420037032,1775627453690,-5361.57423727,0.00022603,2]
[420037033,1775627453700,-152.0,0.00022703,5]
[420037034,1775627453711,-4444.0,0.00022745,2]
[420037035,1775627453721,-500.0,0.00023,2]
[420037036,1775627453731,-160.0,0.00023,30]
[420037037,1775627453743,-160.0,0.00023,7]
[420037038,1775627453753,-300.0,0.00023,120]
[420037039,1775627453763,-701.0,0.00023,2]
[420037040,1775627453773,-162.0,0.00023,2]
[420037041,1775627453784,-1220.0,0.00023,2]
[420037042,1775627453794,-5456.0,0.00023,2]
[420037043,1775627453804,-3464.0,0.00023,2]
[420037044,1775627453815,-1355.0,0.00023,2]
[420037045,1775627453826,-977.0,0.00023,2]
[420037046,1775627453835,-160.0,0.00023,2]
[420037047,1775627453845,-1364.0,0.00023,2]
[420037048,1775627453855,-2000.0,0.00023007,2]
[420037049,1775627453866,-201.2726407,0.00023018,2]
[420037050,1775627453876,-216.991796,0.00023018,2]
[420037051,1775627453886,-2748.95,0.00023025,7]
[420037052,1775627453896,-438.5413,0.000233,2]
[420037053,1775627453907,-402.56716046,0.00023332,2]
[420037054,1775627453917,-2000.0,0.000234,2]
[420037055,1775627453927,-524.0,0.00023533,5]
[420037056,1775627453937,-922.0,0.00023533,5]
[420037057,1775627453946,-612.0,0.000236,2]
[420037058,1775627453957,-1000.0,0.000236,2]
[420037059,1775627453968,-627.0,0.000236,2]
[420037060,1775627453979,-878.0,0.000236,2]
[420037061,1775627453990,-156.22357128,0.00023655,2]
[420037062,1775627454000,-2663.93,0.00023695,7]
[420037063,1775627454011,-622.0,0.00023749,2]
[420037064,1775627454021,-1046.0,0.00023749,2]
[420037065,1775627454031,-1347.0,0.00023749,2]
[420037066,1775627454041,-3524.0,0.00023749,2]
[420037067,1775627454051,-150.0,0.00023749,2]
[420037068,1775627454061,-415.0,0.00023749,2]
[420037069,1775627454071,-2936.892,0.00023749,2]
[420037070,1775627454080,-152.0,0.0002389,6]
[420037071,1775627454091,-160.0,0.00024,7]
[420037072,1775627454101,-160.0,0.00024,7]
[420037073,1775627454111,-160.0,0.00024,7]
[420037074,1775627454121,-160.0,0.00024,7]
[420037075,1775627454131,-160.0,0.00024,7]
[420037076,1775627454140,-701.0,0.00024,2]
[420037077,1775627454150,-162.0,0.00024,2]
[420037078,1775627454160,-1220.0,0.00024,2]
[420037079,1775627454170,-5456.0,0.00024,2]
[420037080,1775627454179,-3464.0,0.00024,2]
[420037081,1775627454189,-1355.0,0.00024,2]
[420037082,1775627454199,-977.0,0.00024,2]
[420037083,1775627454211,-1364.0,0.00024,2]
[420037084,1775627454221,-1974.12409459,0.00024132,120]
[420037085,1775627454231,-4251.42618612,0.00024132,120]
[420037086,1775627454242,-1533.3595463,0.00024132,120]
[420037087,1775627454252,-500.0,0.00024247,2]
[420037088,1775627454262,-2132.78,0.00024513,2]
[420037089,1775627454271,-2578.91,0.00024589,7]
[420037090,1775627454281,-494.0595,0.000246,2]
[420037091,1775627454290,-2000.0,0.00024658,7]
[420037092,1775627454300,-150.0,0.00024658,2]
[420037093,1775627454309,-528.52,0.00024658,2]
[420037094,1775627454318,-164.07349229,0.00024658,2]
[420037095,1775627454327,-153.72,0.00024658,30]
[420037096,1775627454337,-46281.6133234,0.000248,7]
[420037097,1775627455284,-33083.1566766,0.000248,7]
[420037098,1775627455295,-326.43176158,0.00024815,2]
[420037099,1775627455305,-825.0,0.00024821,60]
[420037100,1775627455315,-25000.0,0.00024891,7]
[420037101,1775627455324,-209.44774698,0.000249,7]
[420037102,1775627455334,-25000.0,0.000249,7]
[420037103,1775627455343,-500.0,0.000249,2]
[420037104,1775627455354,-21300.71539774,0.000249,7]
[420037105,1775627455363,-595316.741203,0.000249,2]
[420037106,1775627455373,-151.0,0.000249,2]
[420037107,1775627455383,-151.0,0.000249,2]
[420037108,1775627455392,-151.0,0.000249,2]
[420037109,1775627455402,-151.0,0.000249,2]
[420037110,1775627455412,-151.0,0.000249,2]
[420037111,1775627455422,-151.0,0.000249,2]
[420037112,1775627455431,-151.0,0.000249,2]
[420037113,1775627455441,-151.0,0.000249,2]
[420037114,1775627455450,-151.0,0.000249,2]
[420037115,1775627455461,-151.0,0.000249,2]
[420037116,1775627455470,-151.0,0.000249,2]
[420037117,1775627455480,-151.0,0.000249,2]
[420037118,1775627455490,-151.0,0.000249,2]
[420037119,1775627455500,-151.0,0.000249,2]
[420037120,1775627455510,-151.0,0.000249,2]
[420037121,1775627455520,-151.0,0.000249,2]
[420037122,1775627455530,-151.0,0.000249,2]
[420037123,1775627455540,-151.0,0.000249,2]
[420037124,1775627455550,-151.0,0.000249,2]
[420037125,1775627455561,-151.0,0.000249,2]
[420037126,1775627455571,-151.0,0.000249,2]
[420037127,1775627455580,-151.0,0.000249,2]
[420037128,1775627455590,-151.0,0.000249,2]
[420037129,1775627455600,-151.0,0.000249,2]
[420037130,1775627455610,-151.0,0.000249,2]
[420037131,1775627455620,-151.0,0.000249,2]
[420037132,1775627455630,-151.0,0.000249,2]
[420037133,1775627455640,-256.800893,0.000249,2]
[420037134,1775627455650,-550.0,0.00025,2]
[420037135,1775627455659,-160.0,0.00025,30]
[420037136,1775627455669,-3086.0,0.00025,5]
[420037137,1775627455678,-3000.0,0.00025,5]
[420037138,1775627455688,-1000.0,0.00025,3]
[420037139,1775627455698,-1000.0,0.00025,3]
[420037140,1775627455708,-1000.0,0.00025,3]
[420037141,1775627455718,-701.0,0.00025,2]
[420037142,1775627455728,-162.0,0.00025,2]
[420037143,1775627455864,-1220.0,0.00025,2]
[420037144,1775627455881,-5456.0,0.00025,2]
[420037145,1775627455891,-3464.0,0.00025,2]
[420037146,1775627455901,-1355.0,0.00025,2]
[420037147,1775627455910,-977.0,0.00025,2]
[420037148,1775627455920,-1364.0,0.00025,2]
[420037149,1775627455930,-1000.0,0.00025,7]
[420037150,1775627455940,-5361.57423727,0.00025002,2]
[420037151,1775627455951,-152.0,0.00025077,7]
[420037152,1775627455961,-670.58624095,0.00025208,2]
[420037153,1775627455971,-621.78829552,0.00025208,2]
[420037154,1775627455981,-2500.0,0.00025582,7]
[420037155,1775627455991,-1100.0,0.00025582,7]
[420037156,1775627456002,-2493.9,0.00025707,7]
[420037157,1775627456011,-470.29281914,0.00025809,2]
[420037158,1775627456021,-150.0,0.0002589,2]
[420037159,1775627456031,-556.6062,0.000259,2]
[420037160,1775627456041,-701.0,0.00026,2]
[420037161,1775627456050,-162.0,0.00026,2]
[420037162,1775627456060,-1220.0,0.00026,2]
[420037163,1775627456070,-5456.0,0.00026,2]
[420037164,1775627456079,-3464.0,0.00026,2]
[420037165,1775627456089,-1355.0,0.00026,2]
[420037166,1775627456098,-977.0,0.00026,2]
[420037167,1775627456108,-1364.0,0.00026,2]
[420037168,1775627456118,-150.0,0.00026027,2]
[420037169,1775627456128,-182.0,0.00026027,2]
[420037170,1775627456137,-5195.35652,0.0002603,2]
[420037171,1775627456147,-5000.0,0.0002603,2]
[420037172,1775627456157,-5000.0,0.0002603,2]
[420037173,1775627456166,-5000.0,0.0002603,2]
[420037174,1775627456176,-634.1,0.00026086,30]
[420037175,1775627456186,-2000.0,0.00026125,2]
[420037176,1775627456195,-10000.0,0.00026125,2]
[420037177,1775627456205,-152.0,0.00026263,8]
[420037178,1775627456214,-1000.0,0.0002627,2]
[420037179,1775627456224,-350.0,0.00026364,2]
[420037180,1775627456234,-246.0,0.00026488,2]
[420037181,1775627456244,-165.0,0.00026495,120]
[420037182,1775627456253,-534.73708104,0.000265,20]
[420037183,1775627456263,-497.16495477,0.00026675,2]
[420037184,1775627456273,-2132.78,0.00026676,2]
[420037185,1775627456284,-2500.0,0.00026678,7]
[420037186,1775627456294,-1100.0,0.00026678,7]
[420037187,1775627456304,-79364.77,0.000267,7]
[420037188,1775627456313,-151.0,0.000267,2]
[420037189,1775627456323,-151.0,0.000267,2]
[420037190,1775627456333,-151.0,0.000267,2]
[420037191,1775627456342,-151.103673,0.000267,2]
[420037192,1775627456352,-473.53623526,0.00026728,2]
[420037193,1775627456361,-299.0,0.00026747,2]
[420037194,1775627456371,-622.0,0.00026749,2]
[420037195,1775627456381,-1046.0,0.00026749,2]
[420037196,1775627456390,-1347.0,0.00026749,2]
[420037197,1775627456400,-415.0,0.00026749,2]
[420037198,1775627456410,-151.0,0.00026849,2]
[420037199,1775627456420,-151.0,0.00026849,2]
[420037200,1775627456430,-151.0,0.00026849,2]
[420037201,1775627456439,-151.0,0.00026849,2]
[420037202,1775627456449,-151.0,0.00026849,2]
[420037203,1775627456460,-151.0,0.00026849,2]
[420037204,1775627456469,-151.0,0.00026849,2]
[420037205,1775627456479,-274.91145032,0.00026849,2]
[420037206,1775627456490,-244.0,0.000269,2]
[420037207,1775627456500,-156.19695045,0.000269,30]
[420037208,1775627456509,-300.0,0.00026974,2]
[420037209,1775627456519,-349.0,0.00026979,2]
[420037210,1775627456528,-600.0,0.00027,2]
[420037211,1775627456538,-151.33197365,0.00027,2]
[420037212,1775627456548,-704.68821068,0.00027,2]
[420037213,1775627456558,-176.46613302,0.00027,2]
[420037214,1775627456568,-1229.69792159,0.00027,2]
[420037215,1775627456578,-5471.45900555,0.00027,2]
[420037216,1775627456588,-3469.61009304,0.00027,2]
[420037217,1775627456598,-1061.61249808,0.00027,2]
[420037218,1775627456612,-295.05688568,0.00027,2]
[420037219,1775627456621,-2110.0,0.00027,2]
[420037220,1775627456631,-978.89743861,0.00027,2]
[420037221,1775627456641,-1382.55237078,0.00027,2]
[420037222,1775627456651,-13285.8830738,0.00027007,2]
[420037223,1775627456661,-151.0,0.00027007,2]
[420037224,1775627456671,-164.194441,0.00027007,2]
[420037225,1775627456681,-151.0,0.00027007,2]
[420037226,1775627456691,-151.0,0.00027007,2]
[420037227,1775627456701,-151.0,0.00027007,2]
[420037228,1775627456711,-382.915304,0.00027007,2]
[420037229,1775627456720,-382.915304,0.00027007,2]
[420037230,1775627456730,-382.915304,0.00027007,2]
[420037231,1775627456740,-382.915304,0.00027007,2]
[420037232,1775627456750,-151.0,0.00027007,2]
[420037233,1775627456760,-67162.93656884,0.0002702,2]
[420037234,1775627456772,-93223.83332884,0.0002702,2]
[420037235,1775627456805,-669.57712273,0.0002702,2]
[420037236,1775627456817,-3404.56,0.0002702,2]
[420037237,1775627456900,-949.28687511,0.00017749,2]
[420037238,1775627456912,-1643.93003498,0.00017749,2]
[420037239,1775627456924,-872.34353742,0.00017749,2]
[420037240,1775627456935,-2365.275,0.00017749,2]